bitfinex-derivatives/quotes_BTCF0:USTF0_20241020
["timestamp","ask_amount","ask_price","bid_price","bid_amount"]
[1729419581948,1.573002,68494.0,68491.0,0.05824605]
[1729419588353,1.573002,68494.0,68492.0,0.05824605]
[1729419588547,0.3608,68493.0,68491.0,0.05824121]
[1729419588749,0.391,68493.0,68490.0,0.05824121]
[1729419588941,0.073005,68491.0,68490.0,0.05824121]
[1729419589254,0.073007,68490.0,68489.0,0.05824121]
[1729419589753,0.073008,68489.0,68488.0,0.05824121]
[1729419589948,0.073008,68489.0,68485.0,0.07295905]
[1729419590356,0.07301,68487.0,68485.0,0.07295905]
[1729419590946,0.073011,68486.0,68484.0,0.07295905]
[1729419591747,0.073012,68485.0,68484.0,0.07295905]
[1729419591949,0.073013,68484.0,68483.0,0.14597305]
[1729419592150,0.073013,68484.0,68483.0,0.073014]
[1729419594051,0.073009,68488.0,68487.0,0.07301]
[1729419597857,0.1087672,68488.0,68487.0,0.07301]
[1729419599260,0.073009,68488.0,68487.0,0.29927711]
[1729419604163,0.073009,68488.0,68487.0,0.17623585]
[1729419606772,0.073009,68488.0,68487.0,0.29892185]
[1729419606974,0.073009,68488.0,68487.0,0.17623585]
[1729419607162,0.10876671,68488.0,68487.0,0.07301]
[1729419609364,0.15358653,68488.0,68487.0,0.07301]
[1729419609576,0.10876671,68488.0,68487.0,0.07301]
[1729419609760,0.15358632,68488.0,68487.0,0.07301]
[1729419613670,0.15358569,68488.0,68487.0,0.07301]
[1729419614068,0.073009,68488.0,68487.0,0.29858096]
[1729419618274,0.073009,68488.0,68487.0,0.29867307]
[1729419622287,0.073009,68488.0,68487.0,0.07301]
[1729419626879,0.09994671,68492.0,68489.0,0.073007]
[1729419627086,0.073005,68492.0,68491.0,0.05837101]
[1729419629089,0.1535812,68492.0,68489.0,0.073007]
[1729419629281,0.0805762,68491.0,68489.0,0.073007]
[1729419629481,0.0805762,68490.0,68489.0,0.073007]
[1729419632882,0.09993635,68492.0,68489.0,0.073007]
[1729419633085,0.08057658,68491.0,68489.0,0.073007]
[1729419637186,0.09993635,68492.0,68490.0,0.22572923]
[1729419637391,0.09993635,68492.0,68491.0,0.22572923]
[1729419637593,0.09993635,68492.0,68491.0,0.10298046]
[1729419638689,0.46073635,68492.0,68491.0,0.10298046]
[1729419642718,0.46073635,68492.0,68491.0,0.10299524]
[1729419644208,0.59368386,68492.0,68489.0,0.073007]
[1729419644407,0.13294751,68491.0,68489.0,0.073007]
[1729419645519,0.20595351,68491.0,68489.0,0.073007]
[1729419645711,0.08057653,68490.0,68489.0,0.073007]
[1729419652215,0.12537698,68491.0,68489.0,0.29868353]
[1729419652216,0.073006,68491.0,68489.0,0.29868353]
[1729419652423,0.073006,68491.0,68490.0,0.22567664]
[1729419656529,0.073006,68491.0,68490.0,0.10295647]
[1729419657127,0.073006,68491.0,68490.0,0.10296306]
[1729419659231,0.15358274,68491.0,68489.0,0.073007]
[1729419659427,0.08057674,68490.0,68489.0,0.073007]
[1729419659623,0.073011,68486.0,68484.0,0.073013]
[1729419659818,0.03575734,68485.0,68484.0,0.073013]
[1729419660926,0.03575831,68485.0,68484.0,0.073013]
[1729419661831,0.073011,68486.0,68482.0,0.3608]
[1729419662035,0.0357583,68485.0,68482.0,0.3608]
[1729419662229,0.0357583,68484.0,68483.0,0.073014]
[1729419664031,0.073011,68487.0,68484.0,0.073012]
[1729419664336,0.03575857,68486.0,68484.0,0.073012]
[1729419664532,0.03575857,68485.0,68484.0,0.073012]
[1729419665226,0.03575862,68485.0,68484.0,0.073012]
[1729419665426,0.10877062,68485.0,68484.0,0.073012]
[1729419665924,0.15359162,68485.0,68484.0,0.073012]
[1729419667334,0.073012,68485.0,68484.0,0.29885648]
[1729419669536,0.09992652,68485.0,68484.0,0.29885648]
[1729419673134,0.02691452,68485.0,68484.0,0.29885648]
[1729419673328,0.073012,68485.0,68484.0,0.22584448]
[1729419674334,0.073012,68485.0,68481.0,0.1459703]
[1729419675145,0.07301,68487.0,68484.0,0.05836998]
[1729419675331,0.7523,68488.0,68486.0,0.04377815]
[1729419675537,0.7523,68488.0,68486.0,0.04377949]
[1729419676237,0.073011,68486.0,68485.0,0.04377949]
[1729419677247,0.07301,68487.0,68485.0,0.0437706]
[1729419677447,0.073011,68486.0,68485.0,0.0437706]
[1729419677749,0.75954794,68488.0,68480.0,0.05836998]
[1729419677750,0.073015,68483.0,68480.0,0.05836998]
[1729419677945,0.3608,68481.0,68480.0,0.05836998]
[1729419678143,0.4488,68481.0,68480.0,0.05836998]
[1729419678943,0.4488,68481.0,68480.0,0.13138698]
[1729419680340,0.4488,68481.0,68480.0,0.073017]
[1729419680644,0.088,68483.0,68482.0,0.073015]
[1729419683148,0.088,68483.0,68476.0,0.3608]
[1729419683149,0.3608,68487.0,68486.0,0.073011]
[1729419683447,0.014989,68483.0,68476.0,0.3608]
[1729419683638,0.014989,68483.0,68482.0,0.073015]
[1729419687949,0.014988,68483.0,68476.0,0.3608]
[1729419689155,0.08058546,68482.0,68476.0,0.3608]
[1729419689354,0.014988,68483.0,68482.0,0.073015]
[1729419689555,0.014988,68483.0,68482.0,0.11677779]
[1729419691157,0.014988,68483.0,68482.0,0.073015]
[1729419692353,0.014987,68483.0,68480.0,0.05836998]
[1729419692549,0.014987,68483.0,68482.0,0.073015]
[1729419697664,0.05074833,68483.0,68482.0,0.073015]
[1729419703972,0.05074837,68483.0,68482.0,0.073015]
[1729419704375,0.014987,68483.0,68482.0,0.29860396]
[1729419707276,0.014987,68483.0,68482.0,0.29860304]
[1729419707479,0.014987,68483.0,68482.0,0.29860086]
[1729419707679,0.014987,68483.0,68482.0,0.17593147]
[1729419708279,0.014987,68483.0,68482.0,0.29861373]
[1729419712491,0.014987,68483.0,68482.0,0.073015]
[1729419712990,0.3608,68485.0,68479.0,0.07302748]
[1729419712991,0.014987,68484.0,68479.0,0.07302748]
[1729419713296,0.014987,68484.0,68483.0,0.05842382]
[1729419714489,0.014987,68484.0,68483.0,0.13143782]
[1729419715692,0.3608,68485.0,68484.0,0.073013]
[1729419715890,0.4488,68485.0,68484.0,0.073013]
[1729419719391,0.52938679,68485.0,68484.0,0.073013]
[1729419719690,0.58176443,68485.0,68484.0,0.04632789]
[1729419721495,0.22096443,68485.0,68484.0,0.04632789]
[1729419721698,0.16858555,68485.0,68484.0,0.04632789]
[1729419721898,0.52938555,68485.0,68484.0,0.04632789]
[1729419722298,0.58176319,68485.0,68484.0,0.04632789]
[1729419722691,0.22096319,68485.0,68484.0,0.04632789]
[1729419722998,0.52938555,68485.0,68484.0,0.04632789]
[1729419723394,0.58176319,68485.0,68484.0,0.04632789]
[1729419726797,0.22096319,68485.0,68484.0,0.04632789]
[1729419727000,0.16858555,68485.0,68484.0,0.04632789]
[1729419727297,0.52938555,68485.0,68484.0,0.04632789]
[1729419728997,0.16858555,68485.0,68484.0,0.04632789]
[1729419729187,0.52938555,68485.0,68484.0,0.04632789]
[1729419729893,0.16858555,68485.0,68484.0,0.04632789]
[1729419730088,0.52938555,68485.0,68484.0,0.04632789]
[1729419731500,0.52938582,68485.0,68484.0,0.04632789]
[1729419731802,0.16858582,68485.0,68484.0,0.04632789]
[1729419732012,0.52938582,68485.0,68484.0,0.04632789]
[1729419732389,0.48456137,68485.0,68484.0,0.04632789]
[1729419732591,0.4488,68485.0,68468.0,0.04381579]
[1729419732803,0.433819,68478.0,68475.0,0.073022]
[1729419733099,0.433819,68478.0,68476.0,0.073021]
[1729419733303,1.5,68477.0,68476.0,0.073021]
[1729419734608,1.5,68477.0,68476.0,0.17639647]
[1729419735795,1.5,68477.0,68476.0,0.26402945]
[1729419736002,1.5,68477.0,68476.0,0.17639647]
[1729419736604,1.52687309,68477.0,68476.0,0.17639647]
[1729419737911,1.5,68477.0,68476.0,0.17639647]
[1729419739914,1.57302,68477.0,68476.0,0.10337547]
[1729419740101,1.57302,68477.0,68476.0,0.19094368]
[1729419740302,0.07302,68477.0,68476.0,0.19094368]
[1729419741210,0.07302,68477.0,68476.0,0.1908421]
[1729419741609,0.07302,68477.0,68476.0,0.10327389]
[1729419742011,0.07302,68477.0,68476.0,0.1908421]
[1729419742713,0.07302,68477.0,68474.0,0.14598464]
[1729419744110,0.07302,68477.0,68474.0,0.073023]
[1729419744506,0.07302,68477.0,68474.0,0.14598464]
[1729419744718,0.07302,68477.0,68474.0,0.073023]
[1729419745011,0.07302,68477.0,68474.0,0.14598464]
[1729419745204,0.07302,68477.0,68474.0,0.073023]
[1729419745509,0.07302,68477.0,68474.0,0.14598464]
[1729419749620,0.07302,68477.0,68474.0,0.073023]
[1729419749621,0.08059488,68476.0,68474.0,0.073023]
[1729419750906,0.0805944,68475.0,68474.0,0.073023]
[1729419751106,0.0805944,68476.0,68474.0,0.073023]
[1729419751308,0.0805944,68475.0,68474.0,0.073023]
[1729419751506,0.0805944,68476.0,68474.0,0.073023]
[1729419753219,0.03576518,68475.0,68474.0,0.073023]
[1729419753516,0.03576518,68476.0,68474.0,0.073023]
[1729419753714,0.03576518,68475.0,68474.0,0.073023]
[1729419754606,0.07302,68477.0,68474.0,0.073023]
[1729419754607,0.03576518,68476.0,68474.0,0.073023]
[1729419755706,0.03576535,68475.0,68474.0,0.073023]
[1729419756710,0.07302,68477.0,68474.0,0.17637127]
[1729419756915,0.07302,68477.0,68475.0,0.19093183]
[1729419757209,0.07302,68477.0,68476.0,0.10334827]
[1729419760720,0.07302,68477.0,68476.0,0.19093183]
[1729419761021,0.07302,68477.0,68476.0,0.10334827]
[1729419761221,0.07302,68477.0,68476.0,0.19093183]
[1729419762325,0.07302,68477.0,68476.0,0.10334827]
[1729419762713,0.07302,68477.0,68476.0,0.2266462]
[1729419764621,0.07302,68477.0,68474.0,0.073023]
[1729419770018,0.07302,68477.0,68474.0,0.14608958]
[1729419770829,0.07302,68477.0,68474.0,0.073023]
[1729419771027,0.07302,68477.0,68474.0,0.14608958]
[1729419771831,0.07302,68477.0,68474.0,0.073023]
[1729419771832,0.080592,68476.0,68474.0,0.073023]
[1729419775321,0.08059292,68475.0,68474.0,0.073023]
[1729419779724,0.07302,68477.0,68474.0,0.17645995]
[1729419780026,0.07302,68477.0,68475.0,0.19111633]
[1729419780225,0.07302,68477.0,68476.0,0.10345679]
[1729419782437,0.07302,68477.0,68476.0,0.10348981]
[1729419783031,0.3608,68478.0,68476.0,0.10348981]
[1729419783230,0.3608,68478.0,68477.0,0.10348981]
[1729419786742,0.4413933,68478.0,68476.0,0.073021]
[1729419787042,0.13297518,68477.0,68476.0,0.073021]
[1729419787834,0.0805933,68477.0,68476.0,0.073021]
[1729419793445,0.08059332,68477.0,68476.0,0.073021]
[1729419794739,0.02684152,68479.0,68476.0,0.073021]
[1729419794943,0.073018,68480.0,68478.0,0.05845607]
[1729419795951,0.09874116,68480.0,68478.0,0.05845607]
[1729419796654,0.09874116,68480.0,68477.0,0.05845607]
[1729419797152,0.09874116,68480.0,68478.0,0.05845607]
[1729419797343,0.09874116,68480.0,68477.0,0.05845607]
[1729419798749,0.09874116,68480.0,68478.0,0.05845607]
[1729419798954,0.09874116,68480.0,68477.0,0.05845607]
[1729419799646,0.09874116,68480.0,68478.0,0.05845607]
[1729419800149,0.073018,68479.0,68478.0,0.05845607]
[1729419800351,0.073018,68479.0,68477.0,0.05845607]
[1729419800549,0.073018,68479.0,68478.0,0.05845607]
[1729419801649,0.073018,68479.0,68477.0,0.05845607]
[1729419801950,0.15361248,68479.0,68476.0,0.05207952]
[1729419802154,0.08059448,68478.0,68476.0,0.05207952]
[1729419802448,0.08059448,68477.0,68476.0,0.05207952]
[1729419803346,0.08059439,68477.0,68476.0,0.05207952]
[1729419809759,0.073018,68479.0,68476.0,0.05207952]
[1729419809957,0.073018,68479.0,68477.0,0.05845727]
[1729419814976,0.073018,68479.0,68478.0,0.05845727]
[1729419820579,0.032,68480.0,68478.0,0.05845727]
[1729419822475,0.073018,68479.0,68478.0,0.05845727]
[1729419824873,0.073018,68479.0,68473.0,0.073025]
[1729419825079,0.08059368,68478.0,68473.0,0.073025]
[1729419825274,0.08059368,68477.0,68473.0,0.073025]
[1729419825479,0.08059368,68476.0,68473.0,0.073025]
[1729419825683,0.08059368,68475.0,68473.0,0.073025]
[1729419825880,0.08059368,68474.0,68473.0,0.073025]
[1729419831889,0.073019,68478.0,68473.0,0.17650096]
[1729419832077,0.073019,68478.0,68474.0,0.17654898]
[1729419832278,0.073019,68478.0,68474.0,0.07307302]
[1729419839993,0.08059306,68477.0,68473.0,0.0469634]
[1729419840187,0.08059306,68476.0,68475.0,0.073022]
[1729419841189,0.08059299,68476.0,68475.0,0.073022]
[1729419842488,0.04482845,68476.0,68475.0,0.073022]
[1729419842686,0.08059301,68476.0,68475.0,0.073022]
[1729419846095,0.073019,68478.0,68475.0,0.073022]
[1729419846296,0.08059299,68477.0,68476.0,0.073021]
[1729419847092,0.105018,68480.0,68476.0,0.073021]
[1729419850187,0.105018,68480.0,68479.0,0.05845719]
[1729419850901,0.105018,68480.0,68476.0,0.073021]
[1729419851397,0.0262733,68481.0,68475.0,0.07307302]
[1729419851602,0.3608,68482.0,68478.0,0.073019]
[1729419852302,0.38741066,68482.0,68478.0,0.073019]
[1729419852905,0.38741066,68482.0,68481.0,0.05844908]
[1729419853401,0.38741066,68482.0,68478.0,0.073019]
[1729419854196,0.38741066,68482.0,68481.0,0.0584456]
[1729419858809,0.38741066,68482.0,68480.0,0.0584456]
[1729419859414,0.073016,68481.0,68480.0,0.0584456]
[1729419862018,0.15360786,68481.0,68477.0,0.07302]
[1729419862216,0.08059186,68480.0,68477.0,0.07302]
[1729419862417,0.08059186,68479.0,68477.0,0.07302]
[1729419862614,0.08059186,68478.0,68477.0,0.07302]
[1729419864219,0.08059186,68478.0,68477.0,0.04807401]
[1729419869928,0.073016,68481.0,68477.0,0.04807401]
[1729419870132,0.073016,68481.0,68480.0,0.05843783]
[1729419874429,0.073016,68481.0,68477.0,0.07302]
[1729419877029,0.08059197,68480.0,68477.0,0.07302]
[1729419877217,0.08059197,68479.0,68477.0,0.07302]
[1729419877413,0.08059197,68478.0,68477.0,0.07302]
[1729419884236,0.08059197,68478.0,68477.0,0.04829667]
[1729419885036,0.073016,68481.0,68477.0,0.27793178]
[1729419885236,0.073016,68481.0,68478.0,0.22963511]
[1729419885422,0.073016,68481.0,68479.0,0.22963511]
[1729419885629,0.073016,68481.0,68480.0,0.22963511]
[1729419889837,0.073016,68481.0,68480.0,0.22967033]
[1729419892239,0.15360745,68481.0,68477.0,0.04829667]
[1729419892424,0.08059145,68480.0,68477.0,0.04829667]
[1729419894539,0.08059162,68479.0,68477.0,0.04829667]
[1729419894732,0.08059162,68478.0,68477.0,0.04829667]
[1729419899437,0.08059254,68478.0,68477.0,0.04829667]
[1729419900143,0.073018,68479.0,68477.0,0.27796334]
[1729419900439,0.073018,68479.0,68478.0,0.22966667]
[1729419902641,0.073018,68479.0,68478.0,0.22964486]
[1729419903036,0.073018,68479.0,68478.0,0.22971465]
[1729419907145,0.073018,68479.0,68477.0,0.12136861]
[1729419908148,0.38741066,68482.0,68477.0,0.07307194]
[1729419908451,0.073019,68478.0,68476.0,0.07307194]
[1729419909344,0.073019,68478.0,68476.0,0.14609294]
[1729419909943,0.38741066,68482.0,68476.0,0.14609294]
[1729419909944,0.38741066,68482.0,68476.0,0.07307194]
[1729419910136,0.38741066,68482.0,68480.0,0.05845927]
[1729419910341,0.073016,68481.0,68480.0,0.05845927]
[1729419912050,0.38741066,68482.0,68473.0,0.07307194]
[1729419912353,0.073016,68481.0,68480.0,0.05844747]
[1729419914241,0.073017,68480.0,68478.0,0.05844747]
[1729419914447,0.0304,68479.0,68478.0,0.05844747]
[1729419914647,0.103418,68479.0,68478.0,0.05844747]
[1729419915047,0.103418,68479.0,68469.0,0.3608]
[1729419915048,0.18401281,68479.0,68469.0,0.3608]
[1729419915350,0.11259481,68478.0,68469.0,0.3608]
[1729419915544,0.08059481,68477.0,68473.0,0.073024]
[1729419916243,0.08059481,68477.0,68469.0,0.3608]
[1729419916445,0.08059481,68477.0,68474.0,0.073023]
[1729419918146,0.3608,68476.0,68474.0,0.073023]
[1729419918355,0.08059481,68475.0,68474.0,0.073023]
[1729419920356,0.073026,68473.0,68470.0,0.073027]
[1729419920750,0.03576755,68472.0,68470.0,0.073027]
[1729419921052,0.03576755,68471.0,68470.0,0.073027]
[1729419921850,0.03576755,68472.0,68470.0,0.073027]
[1729419922047,0.08060026,68471.0,68470.0,0.073027]
[1729419922249,0.073026,68473.0,68470.0,0.073027]
[1729419922653,0.02686452,68475.0,68470.0,0.073027]
[1729419922842,0.3608,68476.0,68473.0,0.05841267]
[1729419923448,0.433822,68476.0,68473.0,0.05841267]
[1729419923757,0.073022,68476.0,68473.0,0.05841267]
[1729419925661,0.073023,68475.0,68472.0,0.05841267]
[1729419926350,0.073023,68475.0,68473.0,0.05841267]
[1729419926655,0.073023,68475.0,68472.0,0.05841267]
[1729419926860,0.073023,68475.0,68473.0,0.05841267]
[1729419928659,0.073023,68475.0,68470.0,0.073027]
[1729419928660,0.073024,68474.0,68472.0,0.05841267]
[1729419928954,0.073024,68474.0,68473.0,0.05841267]
[1729419929351,0.1536203,68474.0,68470.0,0.073027]
[1729419929654,0.0805963,68473.0,68470.0,0.073027]
[1729419931760,0.0805963,68472.0,68470.0,0.073027]
[1729419932056,0.0805963,68472.0,68465.0,0.09892571]
[1729419932253,0.0805963,68472.0,68465.0,0.073032]
[1729419932454,0.0805963,68472.0,68463.0,0.03529076]
[1729419932653,0.0805963,68472.0,68466.0,0.073031]
[1729419933259,0.0805963,68472.0,68463.0,0.03529076]
[1729419933563,0.0805963,68472.0,68469.0,0.073028]
[1729419937266,0.073025,68473.0,68469.0,0.073028]
[1729419940371,0.073025,68473.0,68472.0,0.05841063]
[1729419940781,0.073025,68473.0,68469.0,0.14609994]
[1729419941265,0.073025,68473.0,68472.0,0.05841027]
[1729419941667,0.073025,68473.0,68469.0,0.14609994]
[1729419942064,0.073025,68473.0,68472.0,0.05841215]
[1729419942670,0.073025,68473.0,68469.0,0.14609994]
[1729419944080,0.073026,68472.0,68469.0,0.07307194]
[1729419944286,0.073026,68472.0,68468.0,0.07307194]
[1729419948199,0.073026,68472.0,68469.0,0.07307194]
[1729419948402,0.073026,68472.0,68468.0,0.07307194]
[1729419949200,0.073026,68472.0,68469.0,0.07307194]
[1729419950293,0.073026,68472.0,68470.0,0.07307194]
[1729419952295,0.073026,68472.0,68466.0,0.073032]
[1729419952296,0.08059934,68471.0,68466.0,0.073032]
[1729419952499,0.08059934,68470.0,68466.0,0.073032]
[1729419952699,0.08059934,68469.0,68466.0,0.073032]
[1729419952897,0.08059934,68468.0,68466.0,0.073032]
[1729419953097,0.08059934,68467.0,68466.0,0.073032]
[1729419959310,0.073026,68472.0,68466.0,0.44975375]
[1729419959501,0.3608,68474.0,68468.0,0.1023112]
[1729419959502,0.073027,68471.0,68468.0,0.1023112]
[1729419959810,0.073027,68471.0,68469.0,0.2309407]
[1729419960004,0.073027,68471.0,68470.0,0.2309407]
[1729419960799,0.073027,68471.0,68470.0,0.3332519]
[1729419960995,0.073027,68471.0,68470.0,0.2309407]
[1729419961410,0.433827,68471.0,68470.0,0.2309407]
[1729419962819,0.073027,68471.0,68470.0,0.2309407]
[1729419963116,0.433827,68471.0,68470.0,0.2309407]
[1729419963303,0.073027,68471.0,68470.0,0.2309407]
[1729419963508,0.433827,68471.0,68470.0,0.2309407]
[1729419963705,0.073027,68471.0,68470.0,0.2309407]
[1729419963913,0.433827,68471.0,68470.0,0.2309407]
[1729419964710,0.073027,68471.0,68470.0,0.2309407]
[1729419965018,0.433827,68471.0,68470.0,0.2309407]
[1729419966415,0.073027,68471.0,68470.0,0.2309407]
[1729419967420,0.073027,68471.0,68466.0,0.073032]
[1729419967722,0.15362928,68471.0,68466.0,0.073032]
[1729419967919,0.08060228,68470.0,68466.0,0.073032]
[1729419968223,0.08060228,68469.0,68466.0,0.073032]
[1729419969322,0.08060198,68468.0,68466.0,0.073032]
[1729419969524,0.08060198,68467.0,68466.0,0.073032]
[1729419974136,0.0806034,68467.0,68466.0,0.073032]
[1729419974339,0.0806034,68469.0,68466.0,0.073032]
[1729419974533,0.103929,68470.0,68467.0,0.47937737]
[1729419974731,0.073029,68469.0,68468.0,0.23113562]
[1729419977741,0.0309,68470.0,68468.0,0.23113562]
[1729419977939,0.0309,68470.0,68469.0,0.23113562]
[1729419979042,0.0309,68470.0,68469.0,0.23118239]
[1729419982544,0.11150194,68470.0,68466.0,0.073032]
[1729419982839,0.08060194,68469.0,68466.0,0.073032]
[1729419983044,0.0309,68470.0,68466.0,0.073032]
[1729419983045,0.08060194,68468.0,68466.0,0.073032]
[1729419983346,0.08060194,68467.0,68466.0,0.073032]
[1729419989235,0.03576852,68467.0,68466.0,0.073032]
[1729419989442,0.02612797,68468.0,68466.0,0.17853043]
[1729419989647,0.0309,68470.0,68467.0,0.10549843]
[1729419989840,0.0309,68470.0,68468.0,0.07307652]
[1729419994144,0.05724468,68470.0,68468.0,0.07307652]
[1729419996648,0.05724468,68470.0,68466.0,0.073032]
[1729419996649,0.05724468,68470.0,68469.0,0.17856062]
[1729419998457,0.05724468,68470.0,68469.0,0.17856055]
[1729419999940,0.05724468,68470.0,68469.0,0.07307652]
[1729420000140,0.05724468,68470.0,68469.0,0.1785629]
[1729420001852,0.05724468,68470.0,68469.0,0.07307652]
[1729420004657,0.19023558,68470.0,68466.0,0.073032]
[1729420004847,0.08060283,68469.0,68466.0,0.073032]
[1729420005151,0.08060283,68468.0,68466.0,0.073032]
[1729420005345,0.08060283,68467.0,68466.0,0.073032]
[1729420008448,0.08060245,68467.0,68466.0,0.073032]
[1729420011857,0.02824713,68470.0,68466.0,0.073032]
[1729420012553,0.02634468,68470.0,68468.0,0.1023112]
[1729420012763,0.103527,68471.0,68469.0,0.23253395]
[1729420013055,0.103527,68471.0,68470.0,0.23253395]
[1729420013254,0.103527,68471.0,68470.0,0.2325333]
[1729420016153,0.13019324,68471.0,68470.0,0.2325333]
[1729420016752,0.02666624,68471.0,68470.0,0.17911256]
[1729420016947,0.0325,68476.0,68470.0,0.17911256]
[1729420017158,0.105522,68476.0,68471.0,0.10608456]
[1729420017461,0.105522,68476.0,68472.0,0.10608456]
[1729420017645,0.105522,68476.0,68473.0,0.10608456]
[1729420017850,0.105522,68476.0,68474.0,0.10608456]
[1729420018152,0.13190408,68476.0,68475.0,0.10578858]
[1729420019562,0.13190408,68476.0,68470.0,0.073028]
[1729420019866,0.03576766,68475.0,68470.0,0.073028]
[1729420020163,0.03576766,68474.0,68464.0,0.073034]
[1729420020363,0.03576766,68473.0,68463.0,0.02582606]
[1729420020555,0.03576766,68472.0,68464.0,0.02718696]
[1729420020753,0.03576766,68471.0,68464.0,0.02718696]
[1729420021058,0.03576766,68470.0,68463.0,0.00159987]
[1729420021259,0.03576766,68469.0,68468.0,0.07303]
[1729420021457,0.03576766,68474.0,68468.0,0.07303]
[1729420021759,0.03576766,68474.0,68462.0,0.0651]
[1729420021760,0.08060041,68473.0,68462.0,0.04960406]
[1729420021961,0.08060041,68472.0,68462.0,0.04960406]
[1729420022150,0.08060041,68471.0,68464.0,0.02505376]
[1729420022349,0.08060041,68470.0,68468.0,0.07303]
[1729420022557,0.08060041,68469.0,68468.0,0.07303]
[1729420022962,0.08060099,68469.0,68468.0,0.07303]
[1729420026350,0.08060027,68469.0,68468.0,0.07303]
[1729420027764,0.433823,68475.0,68468.0,0.17966517]
[1729420027966,0.073023,68475.0,68470.0,0.07306051]
[1729420028466,0.073023,68475.0,68471.0,0.17969122]
[1729420028664,0.073023,68475.0,68471.0,0.07306051]
[1729420030563,0.433823,68475.0,68471.0,0.07306051]
[1729420031556,0.073023,68475.0,68471.0,0.07306051]
[1729420031868,0.433823,68475.0,68471.0,0.07306051]
[1729420033561,0.073023,68475.0,68471.0,0.07306051]
[1729420033773,0.433823,68475.0,68471.0,0.07306051]
[1729420035465,0.433823,68475.0,68470.0,0.07306051]
[1729420035668,0.433823,68475.0,68471.0,0.17974726]
[1729420035872,0.433823,68475.0,68471.0,0.07306051]
[1729420036975,0.073023,68475.0,68471.0,0.07306051]
[1729420041272,0.073023,68475.0,68470.0,0.07306051]
[1729420041273,0.073025,68473.0,68470.0,0.07306051]
[1729420042175,0.3608,68472.0,68470.0,0.07306051]
[1729420042378,0.073025,68473.0,68470.0,0.07306051]
[1729420042677,0.44140162,68472.0,68468.0,0.07303]
[1729420042876,0.08060162,68471.0,68468.0,0.07303]
[1729420043576,0.08060162,68470.0,68468.0,0.07303]
[1729420043879,0.08060162,68469.0,68468.0,0.07303]
[1729420046179,0.0806016,68469.0,68468.0,0.07303]
[1729420046375,0.4414016,68472.0,68468.0,0.07303]
[1729420046679,0.0806016,68471.0,68468.0,0.07303]
[1729420046877,0.05238727,68472.0,68468.0,0.07303]
[1729420046878,0.0806016,68470.0,68468.0,0.07303]
[1729420047073,0.0806016,68469.0,68468.0,0.07303]
[1729420047474,0.0806016,68471.0,68468.0,0.07303]
[1729420047672,0.0806016,68470.0,68468.0,0.07303]
[1729420047977,0.0806016,68469.0,68468.0,0.07303]
[1729420048365,0.03576837,68469.0,68468.0,0.07303]
[1729420048677,0.04483323,68469.0,68468.0,0.07303]
[1729420048873,0.0806016,68471.0,68468.0,0.07303]
[1729420049078,0.0806016,68470.0,68468.0,0.07303]
[1729420049380,0.0806016,68469.0,68468.0,0.07303]
[1729420049879,0.3608,68472.0,68468.0,0.17976381]
[1729420050075,0.3608,68472.0,68471.0,0.07307407]
[1729420051382,0.073025,68473.0,68471.0,0.17980775]
[1729420051681,0.3608,68472.0,68471.0,0.07307407]
[1729420051979,0.3608,68472.0,68471.0,0.17981048]
[1729420052175,0.073025,68473.0,68471.0,0.17981048]
[1729420052385,0.3608,68472.0,68471.0,0.07307407]
[1729420052572,0.073025,68473.0,68471.0,0.17981032]
[1729420052881,0.073025,68473.0,68471.0,0.07307407]
[1729420053082,0.3608,68472.0,68471.0,0.07307407]
[1729420053287,0.3608,68472.0,68471.0,0.17980842]
[1729420053576,0.073025,68473.0,68471.0,0.17980842]
[1729420053777,0.3608,68472.0,68471.0,0.07307407]
[1729420053981,0.3608,68472.0,68471.0,0.1798041]
[1729420054985,0.073025,68473.0,68471.0,0.1798041]
[1729420055283,0.3608,68472.0,68471.0,0.07307407]
[1729420055480,0.3608,68472.0,68471.0,0.17980389]
[1729420055882,0.3608,68472.0,68471.0,0.17980565]
[1729420057187,0.073025,68473.0,68471.0,0.17980565]
[1729420057384,0.3608,68472.0,68471.0,0.07307407]
[1729420057580,0.073025,68473.0,68471.0,0.17980317]
[1729420057782,0.073025,68473.0,68462.0,0.04960406]
[1729420057783,0.08060128,68472.0,68462.0,0.04960406]
[1729420057987,0.08060128,68471.0,68467.0,0.073031]
[1729420058286,0.08060128,68470.0,68467.0,0.073031]
[1729420058491,0.08060128,68469.0,68467.0,0.073031]
[1729420058783,0.08060128,68468.0,68467.0,0.073031]
[1729420064689,0.0260321,68469.0,68467.0,0.26799692]
[1729420064875,0.073025,68473.0,68468.0,0.10726854]
[1729420065078,0.073025,68473.0,68471.0,0.0730747]
[1729420065281,0.3608,68472.0,68471.0,0.0730747]
[1729420065490,0.073025,68473.0,68471.0,0.18034322]
[1729420065686,0.073025,68473.0,68471.0,0.0730747]
[1729420066086,0.3608,68472.0,68471.0,0.0730747]
[1729420066287,0.3608,68472.0,68471.0,0.18034468]
[1729420066595,0.073025,68473.0,68471.0,0.18034468]
[1729420066892,0.073025,68473.0,68471.0,0.0730747]
[1729420067189,0.09899658,68473.0,68471.0,0.0730747]
[1729420067377,0.3608,68472.0,68471.0,0.0730747]
[1729420067578,0.3608,68472.0,68471.0,0.1803461]
[1729420067891,0.09899658,68473.0,68471.0,0.1803461]
[1729420068090,0.3608,68472.0,68471.0,0.0730747]
[1729420068390,0.3608,68472.0,68471.0,0.18035375]
[1729420068693,0.09899658,68473.0,68471.0,0.18035375]
[1729420068991,0.09899658,68473.0,68471.0,0.0730747]
[1729420069390,0.3608,68472.0,68471.0,0.0730747]
[1729420069687,0.09899658,68473.0,68471.0,0.10728311]
[1729420069891,0.09899658,68473.0,68472.0,0.1803622]
[1729420072886,0.23198395,68473.0,68467.0,0.073031]
[1729420073093,0.08060069,68472.0,68467.0,0.073031]
[1729420073390,0.08060069,68471.0,68467.0,0.073031]
[1729420073588,0.08060069,68470.0,68467.0,0.073031]
[1729420073893,0.08060069,68469.0,68467.0,0.073031]
[1729420074092,0.08060069,68468.0,68467.0,0.073031]
[1729420075684,0.13298796,68471.0,68467.0,0.073031]
[1729420075882,0.08060128,68470.0,68467.0,0.073031]
[1729420076085,0.08060128,68469.0,68467.0,0.073031]
[1729420076289,0.08060128,68468.0,68466.0,0.073031]
[1729420076496,0.08060128,68467.0,68466.0,0.073031]